bitfinex/quotes_BTCUSD_20250212
["timestamp","ask_amount","ask_price","bid_price","bid_amount"]
[1739331505011,0.156633,95765.0,95764.0,0.006]
[1739331505205,0.156633,95765.0,95764.0,0.04164719]
[1739331505573,0.156633,95765.0,95764.0,0.07540124]
[1739331505999,0.156633,95765.0,95764.0,0.07240124]
[1739331506327,0.156633,95765.0,95764.0,0.07540124]
[1739331506996,0.156633,95765.0,95764.0,0.06940124]
[1739331507183,0.001,95765.0,95763.0,0.04433214]
[1739331507401,0.157634,95765.0,95763.0,0.04433214]
[1739331507612,0.001,95765.0,95763.0,0.04433214]
[1739331508131,0.156634,95765.0,95763.0,0.04433214]
[1739331508904,0.156635,95764.0,95763.0,0.04733214]
[1739331509475,0.156635,95764.0,95763.0,0.08621541]
[1739331509747,0.156635,95764.0,95763.0,0.04188327]
[1739331509960,0.156635,95764.0,95763.0,0.03688327]
[1739331510163,0.157635,95764.0,95763.0,0.04188327]
[1739331510974,0.156635,95764.0,95763.0,0.03688327]
[1739331511133,0.156635,95764.0,95763.0,0.03388327]
[1739331511360,0.156635,95764.0,95763.0,0.003]
[1739331511361,0.157635,95764.0,95763.0,0.003]
[1739331511541,0.001,95764.0,95760.0,0.0001065]
[1739331511750,0.156636,95763.0,95760.0,0.0001065]
[1739331511955,0.001,95764.0,95763.0,0.003]
[1739331512552,0.00013691,95767.0,95763.0,0.10550365]
[1739331512747,0.00013691,95767.0,95764.0,0.1351465]
[1739331512980,0.00013691,95767.0,95766.0,0.156631]
[1739331513208,0.00013691,95767.0,95766.0,0.2917773]
[1739331513681,0.00113691,95767.0,95766.0,0.2917773]
[1739331514347,0.00013691,95767.0,95766.0,0.2917773]
[1739331514908,0.00113691,95767.0,95766.0,0.2977773]
[1739331516264,0.00113691,95767.0,95766.0,0.33037148]
[1739331517322,0.00113691,95767.0,95766.0,0.17374048]
[1739331517535,0.00113691,95767.0,95766.0,0.33037148]
[1739331523470,0.00113691,95767.0,95766.0,0.30687513]
[1739331524569,0.08380166,95823.0,95766.0,0.15024413]
[1739331524772,0.08380166,95823.0,95772.0,0.09630466]
[1739331525237,0.156607,95781.0,95772.0,0.25292466]
[1739331525432,0.285709,95782.0,95772.0,0.25292466]
[1739331525648,0.15661,95779.0,95772.0,0.25292466]
[1739331526716,0.15661,95779.0,95772.0,0.25392466]
[1739331526938,0.156612,95778.0,95772.0,0.09730466]
[1739331527160,0.156612,95778.0,95770.0,0.208832]
[1739331527460,0.156612,95778.0,95771.0,0.156622]
[1739331528431,0.156607,95781.0,95772.0,0.156621]
[1739331528629,0.005,95779.0,95772.0,0.157621]
[1739331528905,0.001,95778.0,95777.0,0.02070371]
[1739331529116,0.156607,95781.0,95777.0,0.02070371]
[1739331529336,0.005,95778.0,95777.0,0.02070371]
[1739331529728,0.001,95778.0,95777.0,0.02070371]
[1739331530919,0.156607,95781.0,95777.0,0.02070371]
[1739331532220,0.156607,95781.0,95772.0,0.208829]
[1739331532707,0.158607,95781.0,95772.0,0.208829]
[1739331532925,0.158607,95781.0,95777.0,0.02075428]
[1739331533136,0.156607,95781.0,95777.0,0.02075428]
[1739331533359,0.158607,95781.0,95777.0,0.02075428]
[1739331535289,0.156607,95781.0,95777.0,0.02075428]
[1739331535501,0.158607,95781.0,95777.0,0.02075428]
[1739331537129,0.158607,95781.0,95772.0,0.2089355]
[1739331537545,0.158607,95781.0,95774.0,0.156618]
[1739331537776,0.158607,95781.0,95773.0,0.208827]
[1739331537996,0.156609,95780.0,95776.0,0.02039249]
[1739331538583,0.156612,95778.0,95776.0,0.02039249]
[1739331540638,0.002,95780.0,95776.0,0.02039249]
[1739331540849,0.156613,95777.0,95776.0,0.02039249]
[1739331541289,0.208814,95779.0,95776.0,0.02039249]
[1739331541783,0.208809,95781.0,95776.0,0.02149249]
[1739331541966,0.156612,95778.0,95776.0,0.02149249]
[1739331542092,0.156612,95778.0,95771.0,0.05222199]
[1739331542322,0.156612,95779.0,95776.0,0.002]
[1739331542798,0.156612,95779.0,95776.0,0.001]
[1739331543445,0.156612,95778.0,95775.0,0.02138212]
[1739331547282,0.156612,95778.0,95769.0,0.208834]
[1739331547509,0.156612,95778.0,95770.0,0.18928593]
[1739331547696,0.156612,95778.0,95771.0,0.03266093]
[1739331547903,0.156612,95778.0,95771.0,0.156623]
[1739331548101,0.156612,95778.0,95772.0,0.03266093]
[1739331549170,0.15661,95779.0,95774.0,0.02089962]
[1739331550322,0.156613,95778.0,95774.0,0.02089962]
[1739331550554,0.00022366,95780.0,95774.0,0.02089962]
[1739331550756,0.156612,95778.0,95774.0,0.02089962]
[1739331551314,0.10249546,95780.0,95774.0,0.02089962]
[1739331551548,0.07712366,95782.0,95774.0,0.02089962]
[1739331551761,0.156612,95778.0,95774.0,0.02089962]
[1739331552168,0.156612,95778.0,95771.0,0.0001065]
[1739331552389,0.001,95779.0,95773.0,0.156619]
[1739331552599,0.156611,95779.0,95773.0,0.156619]
[1739331553646,0.156611,95779.0,95774.0,0.02107111]
[1739331554512,0.001,95779.0,95774.0,0.02107111]
[1739331554955,0.156609,95780.0,95774.0,0.02107111]
[1739331555392,0.001,95779.0,95774.0,0.02107111]
[1739331556002,0.156609,95780.0,95774.0,0.02107111]
[1739331556741,0.158609,95780.0,95774.0,0.02107111]
[1739331557164,0.158609,95780.0,95774.0,0.17768811]
[1739331557594,0.15661,95779.0,95774.0,0.02107111]
[1739331558007,0.15661,95779.0,95774.0,0.02907111]
[1739331558227,0.15661,95779.0,95774.0,0.02607111]
[1739331558435,0.15661,95779.0,95774.0,0.02407111]
[1739331558648,0.157609,95780.0,95774.0,0.18668911]
[1739331559165,0.156609,95780.0,95774.0,0.18068911]
[1739331559383,0.156609,95780.0,95774.0,0.18668911]
[1739331559597,0.001,95779.0,95774.0,0.18668911]
[1739331559816,0.001,95779.0,95774.0,0.18368911]
[1739331560037,0.001,95779.0,95775.0,0.156615]
[1739331560690,0.15683066,95782.0,95775.0,0.156615]
[1739331560916,0.001,95780.0,95775.0,0.156615]
[1739331561120,0.001,95780.0,95775.0,0.004]
[1739331561347,0.001,95780.0,95776.0,0.156614]
[1739331561591,0.00022387,95780.0,95777.0,0.0326653]
[1739331561829,0.001,95779.0,95777.0,0.0326653]
[1739331562169,0.00022387,95780.0,95777.0,0.0326653]
[1739331562606,0.00122387,95780.0,95777.0,0.0326653]
[1739331563637,0.00122387,95780.0,95777.0,0.0366653]
[1739331563847,0.00122387,95780.0,95778.0,0.0326653]
[1739331564490,0.00022387,95780.0,95778.0,0.0326653]
[1739331564705,0.001,95779.0,95778.0,0.0326653]
[1739331565382,0.00022387,95780.0,95778.0,0.0326653]
[1739331565512,0.00122387,95780.0,95778.0,0.0386653]
[1739331565713,0.00122387,95780.0,95779.0,0.0326653]
[1739331565947,0.00022387,95780.0,95779.0,0.0326653]
[1739331567381,0.00022387,95780.0,95779.0,0.0366653]
[1739331567587,0.1222,95804.0,95780.0,0.208811]
[1739331567819,0.156571,95803.0,95793.0,0.156587]
[1739331567977,0.156571,95803.0,95794.0,0.0326653]
[1739331568373,0.156573,95802.0,95794.0,0.0326653]
[1739331568601,0.156573,95802.0,95793.0,0.0326653]
[1739331568802,0.16280008,95800.0,95794.0,0.1892503]
[1739331569005,0.16280008,95800.0,95795.0,0.0326653]
[1739331569229,0.15680008,95800.0,95795.0,0.0326653]
[1739331569686,0.15780008,95800.0,95795.0,0.0326653]
[1739331570136,0.00122408,95800.0,95796.0,0.156581]
[1739331570369,0.00122408,95800.0,95799.0,0.09405217]
[1739331570774,0.00022408,95800.0,95799.0,0.09405217]
[1739331571122,0.15680008,95800.0,95799.0,0.09405217]
[1739331571611,0.00022408,95800.0,95799.0,0.09405217]
[1739331572013,0.00022408,95800.0,95799.0,0.09705217]
[1739331572782,0.00022408,95800.0,95799.0,0.10005217]
[1739331573203,0.14679808,95801.0,95799.0,0.006]
[1739331573437,0.14679808,95801.0,95799.0,0.003]
[1739331573977,0.14679808,95801.0,95795.0,0.156584]
[1739331574378,0.14679808,95801.0,95799.0,0.002]
[1739331574609,0.278771,95804.0,95799.0,0.002]
[1739331574819,0.1222,95804.0,95799.0,0.005]
[1739331575412,0.27877,95804.0,95799.0,0.002]
[1739331575622,0.27877,95804.0,95799.0,0.004]
[1739331575772,0.1222,95804.0,95799.0,0.212769]
[1739331575974,0.1222,95804.0,95799.0,0.006]
[1739331576185,0.27877,95804.0,95799.0,0.004]
[1739331576397,0.27877,95804.0,95799.0,0.006]
[1739331576688,0.1222,95804.0,95799.0,0.162577]
[1739331577160,0.1222,95804.0,95799.0,0.158577]
[1739331577388,0.1222,95804.0,95799.0,0.160577]
[1739331577613,0.278769,95804.0,95799.0,0.160577]
[1739331577973,0.278769,95804.0,95799.0,0.158577]
[1739331578809,0.278769,95804.0,95799.0,0.002]
[1739331579484,0.156571,95803.0,95799.0,0.002]
[1739331579727,0.1222,95804.0,95799.0,0.002]
[1739331579930,0.27877,95804.0,95799.0,0.158577]
[1739331580133,0.27877,95804.0,95799.0,0.156577]
[1739331580391,0.1222,95804.0,95799.0,0.159577]
[1739331580617,0.1222,95804.0,95799.0,0.158577]
[1739331580806,0.278769,95804.0,95799.0,0.158577]
[1739331580958,0.1222,95804.0,95799.0,0.160577]
[1739331581175,0.278769,95804.0,95799.0,0.160577]
[1739331583498,0.1222,95804.0,95800.0,0.156574]
[1739331583689,0.1222,95804.0,95800.0,0.156576]
[1739331584695,0.1222,95804.0,95800.0,0.002]
[1739331584901,0.156573,95802.0,95800.0,0.002]
[1739331585181,0.156573,95802.0,95800.0,0.004]
[1739331585756,0.156573,95802.0,95800.0,0.002]
[1739331585961,0.1222,95804.0,95800.0,0.002]
[1739331586188,0.12242387,95804.0,95800.0,0.002]
[1739331586425,0.12242387,95804.0,95799.0,0.09385961]
[1739331586700,0.12242387,95804.0,95800.0,0.002]
[1739331586916,0.12242387,95804.0,95799.0,0.09385961]
[1739331587120,0.12242387,95804.0,95800.0,0.003]
[1739331587339,0.156571,95803.0,95800.0,0.005]
[1739331587544,0.156573,95802.0,95800.0,0.002]
[1739331587746,0.156573,95802.0,95800.0,0.004]
[1739331588273,0.156573,95802.0,95800.0,0.002]
[1739331588698,0.156571,95803.0,95800.0,0.005]
[1739331589503,0.12242387,95804.0,95800.0,0.005]
[1739331589504,0.156573,95802.0,95800.0,0.005]
[1739331590208,0.156573,95802.0,95800.0,0.003]
[1739331590792,0.156573,95802.0,95800.0,0.002]
[1739331591292,0.27899387,95804.0,95801.0,0.03126686]
[1739331591749,0.04602387,95804.0,95801.0,0.03126686]
[1739331591973,0.04602387,95804.0,95801.0,0.18783986]
[1739331592207,0.04602387,95804.0,95798.0,0.30262961]
[1739331592431,0.04602387,95804.0,95801.0,0.156574]
[1739331592622,0.04602387,95804.0,95801.0,0.002]
[1739331592794,0.04602387,95804.0,95801.0,0.158573]
[1739331593402,0.04602387,95804.0,95801.0,0.160573]
[1739331593821,0.04602387,95804.0,95801.0,0.002]
[1739331594937,0.04602387,95804.0,95801.0,0.003]
[1739331595148,0.156571,95803.0,95801.0,0.003]
[1739331595359,0.04602387,95804.0,95801.0,0.003]
[1739331596029,0.20259387,95804.0,95801.0,0.003]
[1739331596653,0.04602387,95804.0,95801.0,0.003]
[1739331596854,0.04602387,95804.0,95801.0,0.002]
[1739331597229,0.20259387,95804.0,95801.0,0.004]
[1739331597456,0.156571,95803.0,95801.0,0.004]
[1739331597664,0.156571,95803.0,95801.0,0.002]
[1739331597905,0.156572,95802.0,95801.0,0.002]
[1739331598078,0.20259487,95804.0,95801.0,0.003]
[1739331598304,0.156572,95803.0,95801.0,0.003]
[1739331598504,0.156572,95803.0,95801.0,0.002]
[1739331598705,0.156572,95803.0,95801.0,0.004]
[1739331599606,0.00022408,95808.0,95801.0,0.002]
[1739331599815,0.00022408,95808.0,95801.0,0.004]
[1739331600233,0.208753,95807.0,95801.0,0.004]
[1739331600444,0.156569,95805.0,95801.0,0.002]
[1739331600679,0.15657,95804.0,95800.0,0.0001065]
[1739331601384,0.365322,95806.0,95800.0,0.0001065]
[1739331601606,0.156569,95805.0,95801.0,0.002]
[1739331601858,0.15657,95804.0,95801.0,0.002]
[1739331603232,0.00022408,95808.0,95801.0,0.001]
[1739331603450,0.00022408,95808.0,95800.0,0.0011065]
[1739331603451,0.236274,95801.0,95800.0,0.0011065]
[1739331603671,0.285174,95801.0,95800.0,0.0031065]
[1739331603911,0.285174,95801.0,95800.0,0.0001065]
[1739331604132,0.38767765,95801.0,95800.0,0.0001065]
[1739331604383,0.40555256,95801.0,95800.0,0.0001065]
[1739331604609,0.38767765,95801.0,95800.0,0.0001065]
[1739331605053,0.39067765,95801.0,95800.0,0.0001065]
[1739331606192,0.38767765,95801.0,95800.0,0.0001065]
[1739331606440,0.38767765,95801.0,95800.0,0.0011065]
[1739331606441,0.39867765,95801.0,95800.0,0.0011065]
[1739331606985,0.42940634,95801.0,95800.0,0.0001065]
[1739331607226,0.156608,95780.0,95779.0,0.05187437]
[1739331607436,0.236308,95780.0,95779.0,0.05187437]
[1739331607638,0.0797,95780.0,95772.0,0.02098818]
[1739331608011,0.236309,95780.0,95772.0,0.02098818]
[1739331608273,0.0797,95780.0,95772.0,0.02098818]
[1739331608443,0.156612,95778.0,95772.0,0.02098818]
[1739331608643,0.156618,95774.0,95772.0,0.0001066]
[1739331609084,0.0797,95780.0,95772.0,0.0001066]
[1739331609168,0.156615,95777.0,95772.0,0.0001066]
[1739331609650,0.0797,95782.0,95779.0,0.001]
[1739331609891,0.1566,95785.0,95779.0,0.001]
[1739331610456,0.0797,95790.0,95782.0,0.156604]
[1739331610678,0.156587,95794.0,95783.0,0.156602]
[1739331610902,0.0797,95796.0,95780.0,0.19260932]
[1739331611124,0.156586,95794.0,95786.0,0.09630466]
[1739331611335,0.003,95785.0,95780.0,0.19260932]
[1739331611563,0.003,95785.0,95784.0,0.156602]
[1739331612586,0.156587,95794.0,95784.0,0.156602]
[1739331612804,0.156588,95793.0,95784.0,0.25290666]
[1739331613009,0.156588,95793.0,95784.0,0.27404024]
[1739331613430,0.156588,95793.0,95784.0,0.30991441]
[1739331613626,0.156586,95794.0,95784.0,0.30991441]
[1739331613846,0.002,95794.0,95784.0,0.15331241]
[1739331614058,0.156588,95793.0,95784.0,0.15331241]
[1739331614672,0.158588,95793.0,95784.0,0.30991341]
[1739331615130,0.158588,95793.0,95784.0,0.21360875]
[1739331615380,0.002,95793.0,95787.0,0.156597]
[1739331615611,0.002,95793.0,95789.0,0.156593]
[1739331616245,0.33736,95804.0,95784.0,0.02113358]
[1739331616246,0.1286,95804.0,95784.0,0.02113358]
[1739331616464,0.1286,95804.0,95794.0,0.09630466]
[1739331616696,0.0797,95804.0,95794.0,0.09630466]
[1739331616929,0.156575,95801.0,95794.0,0.09630466]
[1739331617134,0.156575,95801.0,95792.0,0.12689166]
[1739331618925,0.20897866,95806.0,95796.0,0.156582]
[1739331619149,0.005,95801.0,95796.0,0.09630466]
[1739331619394,0.005,95801.0,95798.0,0.156578]
[1739331619826,0.00022366,95806.0,95791.0,0.09630466]
[1739331620044,0.001,95801.0,95796.0,0.09630466]
[1739331620247,0.15657,95804.0,95796.0,0.001]
[1739331620469,0.001,95801.0,95796.0,0.001]
[1739331620663,0.001,95801.0,95795.0,0.156583]
[1739331620895,0.15657,95804.0,95795.0,0.156583]
[1739331621122,0.001,95801.0,95795.0,0.156584]
[1739331621954,0.156571,95803.0,95795.0,0.156584]
[1739331622815,0.005,95801.0,95795.0,0.157584]
[1739331623232,0.156571,95803.0,95796.0,0.156582]
[1739331623675,0.163571,95803.0,95796.0,0.156582]
[1739331623905,0.007,95803.0,95796.0,0.156582]
[1739331624100,0.006,95803.0,95795.0,0.001]
[1739331624512,0.007,95803.0,95795.0,0.001]
[1739331625160,0.162571,95803.0,95795.0,0.001]
[1739331625321,0.162571,95803.0,95796.0,0.156582]
[1739331625475,0.156571,95803.0,95796.0,0.151582]
[1739331625711,0.156571,95803.0,95792.0,0.2088916]
[1739331625940,0.162571,95803.0,95796.0,0.001]
[1739331626359,0.163571,95803.0,95796.0,0.001]
[1739331626559,0.156571,95803.0,95792.0,0.2088916]
[1739331626782,0.162571,95803.0,95792.0,0.2098916]
[1739331626989,0.163571,95803.0,95792.0,0.2098916]
[1739331627197,0.163571,95803.0,95793.0,0.03257505]
[1739331627713,0.163571,95803.0,95795.0,0.156583]
[1739331627951,0.162571,95803.0,95796.0,0.03257505]
[1739331628165,0.163571,95803.0,95796.0,0.03257505]
[1739331628465,0.007,95803.0,95796.0,0.03257505]
[1739331628626,0.157572,95803.0,95793.0,0.03257743]
[1739331629004,0.007,95803.0,95795.0,0.156584]
[1739331629207,0.007,95803.0,95796.0,0.156582]
[1739331629389,0.006,95803.0,95796.0,0.156582]
[1739331629585,0.007,95803.0,95796.0,0.156582]
[1739331629814,0.001,95803.0,95793.0,0.208781]
[1739331630047,0.006,95803.0,95797.0,0.09383062]
[1739331630457,0.007,95803.0,95797.0,0.09383062]
[1739331630709,0.15679487,95804.0,95797.0,0.09383062]
[1739331631121,0.001,95803.0,95797.0,0.09383062]
[1739331631330,0.15679487,95804.0,95797.0,0.09383062]
[1739331632345,0.15679487,95804.0,95796.0,0.09383062]
[1739331632551,0.007,95803.0,95796.0,0.09383062]
[1739331632864,0.006,95803.0,95796.0,0.09383062]
[1739331633075,0.156572,95803.0,95796.0,0.09383062]
[1739331633253,0.00122387,95804.0,95796.0,0.09383062]
[1739331633463,0.00722387,95804.0,95797.0,0.001]
[1739331633715,0.001,95803.0,95797.0,0.001]
[1739331633919,0.001,95803.0,95796.0,0.09383062]
[1739331634107,0.00022387,95804.0,95796.0,0.09383062]
[1739331634338,0.006,95803.0,95796.0,0.09483062]
[1739331634557,0.006,95803.0,95796.0,0.25141262]
[1739331635434,0.006,95803.0,95797.0,0.18916699]
[1739331635633,0.00022387,95804.0,95797.0,0.15658]
[1739331635859,0.00722387,95804.0,95798.0,0.0325868]
[1739331636090,0.001,95803.0,95798.0,0.0325868]
[1739331636295,0.157571,95803.0,95798.0,0.0325868]
[1739331636641,0.163571,95803.0,95797.0,0.001]
[1739331636890,0.006,95803.0,95798.0,0.0325882]
[1739331637166,0.15779287,95804.0,95798.0,0.0325882]
[1739331637380,0.15679287,95804.0,95797.0,0.0325882]
[1739331637579,0.006,95803.0,95798.0,0.03358871]
[1739331637798,0.007,95803.0,95798.0,0.001]
[1739331638038,0.007,95803.0,95799.0,0.03258825]
[1739331638173,0.007,95803.0,95800.0,0.09383062]
[1739331638771,0.001,95803.0,95800.0,0.09383062]
[1739331639000,0.15679287,95804.0,95800.0,0.09383062]
[1739331639140,0.16379287,95804.0,95800.0,0.09383062]
[1739331639381,0.00822387,95804.0,95800.0,0.09383062]
[1739331639641,0.00022387,95804.0,95801.0,0.03258943]
[1739331639843,0.007,95803.0,95801.0,0.03258943]
[1739331640094,0.006,95803.0,95801.0,0.03258943]
[1739331640523,0.00122387,95804.0,95801.0,0.03258943]
[1739331640755,0.00022387,95804.0,95801.0,0.03258943]
[1739331640980,0.001,95803.0,95801.0,0.03258943]
[1739331641989,0.157571,95803.0,95801.0,0.03258943]
[1739331642371,0.001,95803.0,95801.0,0.03258943]
[1739331642711,0.15679387,95804.0,95801.0,0.03258943]
[1739331642913,0.006,95803.0,95801.0,0.03358943]
[1739331643088,0.00391821,95803.0,95801.0,0.001]
[1739331643335,0.00391821,95803.0,95793.0,0.208781]
[1739331643536,0.00391821,95803.0,95794.0,0.03260633]
[1739331643749,0.00391821,95803.0,95801.0,0.001]
[1739331643943,0.15679387,95804.0,95793.0,0.208781]
[1739331644152,0.00022387,95804.0,95794.0,0.03260621]
[1739331644374,0.00022387,95804.0,95801.0,0.001]
[1739331645038,0.2033911,95815.0,95801.0,0.001]
[1739331645241,0.156568,95805.0,95801.0,0.001]
[1739331645446,0.001,95803.0,95801.0,0.001]
[1739331645651,0.001,95803.0,95802.0,0.0157581]
[1739331645855,0.208744,95811.0,95800.0,0.156575]
[1739331646060,0.208726,95819.0,95801.0,0.002]
[1739331646259,0.156567,95806.0,95801.0,0.001]
[1739331646414,0.208751,95808.0,95801.0,0.003]
[1739331646618,0.156564,95807.0,95801.0,0.002]
[1739331646832,0.208744,95811.0,95801.0,0.156574]
[1739331647109,0.156563,95808.0,95802.0,0.004]
[1739331647468,0.208744,95811.0,95802.0,0.004]
[1739331647680,0.156563,95808.0,95802.0,0.004]
[1739331648106,0.156565,95807.0,95802.0,0.004]
[1739331648524,0.156565,95807.0,95800.0,0.27429565]
[1739331648738,0.156562,95809.0,95801.0,0.159574]
[1739331648959,0.156563,95808.0,95801.0,0.158574]
[1739331649173,0.208747,95810.0,95801.0,0.158574]
[1739331649174,0.156564,95807.0,95801.0,0.002]
[1739331649388,0.156564,95807.0,95802.0,0.001]
[1739331649627,0.156564,95807.0,95800.0,0.11772065]
[1739331649835,0.156566,95806.0,95800.0,0.11972065]
[1739331650049,0.156566,95806.0,95801.0,0.001]
[1739331650265,0.156566,95806.0,95800.0,0.11772065]
[1739331650469,0.156564,95807.0,95802.0,0.001]
[1739331650939,0.00022366,95808.0,95802.0,0.001]
[1739331651364,0.15678666,95808.0,95802.0,0.001]
[1739331651729,0.15678666,95808.0,95802.0,0.002]
[1739331652298,0.156566,95807.0,95800.0,0.17798999]
[1739331652516,0.00022366,95808.0,95800.0,0.02141599]
[1739331652733,0.156565,95807.0,95801.0,0.18921452]
[1739331652946,0.156565,95807.0,95801.0,0.156574]
[1739331653504,0.156565,95807.0,95802.0,0.03263962]
[1739331654521,0.15878666,95808.0,95802.0,0.03263962]
[1739331655169,0.15678666,95808.0,95802.0,0.03263962]
[1739331655367,0.001,95807.0,95802.0,0.03363962]
[1739331655564,0.001,95807.0,95803.0,0.03263962]
[1739331655800,0.15678666,95808.0,95804.0,0.03263962]
[1739331656007,0.15678666,95808.0,95805.0,0.03263962]
[1739331656239,0.15678666,95808.0,95806.0,0.03263962]
[1739331656453,0.00022366,95808.0,95807.0,0.03263962]
[1739331656648,0.00022366,95808.0,95802.0,0.03363962]
[1739331656850,0.156565,95807.0,95803.0,0.03263962]
[1739331657072,0.156565,95807.0,95804.0,0.03263962]
[1739331657273,0.156565,95807.0,95802.0,0.03263962]
[1739331657503,0.156565,95807.0,95803.0,0.03263962]
[1739331657732,0.156565,95807.0,95802.0,0.03263962]
[1739331657956,0.156565,95807.0,95803.0,0.03263962]
[1739331658168,0.156565,95807.0,95805.0,0.001]
[1739331658373,0.156565,95807.0,95806.0,0.03263962]
[1739331658588,0.156565,95807.0,95802.0,0.03263962]
[1739331658763,0.156565,95807.0,95803.0,0.03363962]
[1739331658964,0.156565,95807.0,95804.0,0.03263962]
[1739331659356,0.156565,95807.0,95805.0,0.001]
[1739331659557,0.156565,95807.0,95803.0,0.03263962]
[1739331659759,0.156565,95807.0,95804.0,0.03263962]
[1739331659953,0.156565,95807.0,95803.0,0.002]
[1739331660190,0.156565,95807.0,95804.0,0.03263962]
[1739331660625,0.156568,95805.0,95804.0,0.03263962]
[1739331661050,0.36532,95807.0,95804.0,0.03263962]
[1739331661263,0.156568,95805.0,95804.0,0.03263962]
[1739331661717,0.33287817,95805.0,95804.0,0.03263962]
[1739331661881,0.280668,95805.0,95804.0,0.03263962]
[1739331662053,0.156579,95798.0,95787.0,0.156596]
[1739331662461,0.156581,95797.0,95786.0,0.15]
[1739331662705,0.156581,95797.0,95796.0,0.03274249]
[1739331663595,0.156581,95797.0,95796.0,0.03374249]
[1739331663842,0.156581,95797.0,95796.0,0.03274249]
[1739331664546,0.156581,95797.0,95796.0,0.03374249]
[1739331665510,0.15658,95798.0,95796.0,0.03374249]
[1739331665713,0.15658,95798.0,95797.0,0.03263599]
[1739331666632,0.15758,95798.0,95797.0,0.03263599]
[1739331667411,0.15758,95798.0,95797.0,0.03363599]
[1739331667412,0.15658,95798.0,95797.0,0.03363599]
[1739331668424,0.001,95798.0,95797.0,0.03363599]
[1739331669227,0.157579,95798.0,95797.0,0.03363599]
[1739331670721,0.001,95798.0,95797.0,0.03363599]
[1739331671798,0.157579,95798.0,95797.0,0.03363599]
[1739331671985,0.001,95798.0,95797.0,0.03263599]
[1739331672162,0.156578,95799.0,95797.0,0.03263599]
[1739331672372,0.156575,95801.0,95797.0,0.03363599]
[1739331672549,0.001,95798.0,95796.0,0.0001065]
[1739331672744,0.001,95798.0,95797.0,0.03262223]
[1739331672951,0.001,95798.0,95797.0,0.03362223]
[1739331673229,0.001,95798.0,95797.0,0.03262223]
[1739331673613,0.156576,95800.0,95797.0,0.03262223]
[1739331674077,0.156576,95800.0,95797.0,0.03362223]
[1739331674226,0.156576,95800.0,95798.0,0.03262223]
[1739331674450,0.15529851,95800.0,95798.0,0.03262223]
[1739331674861,0.156577,95799.0,95798.0,0.03262223]
[1739331675048,0.158577,95799.0,95798.0,0.03262223]
[1739331675272,0.002,95799.0,95798.0,0.03262223]
[1739331675483,0.156576,95800.0,95797.0,0.03262223]
[1739331675703,0.002,95800.0,95798.0,0.03262223]
[1739331676143,0.156575,95801.0,95798.0,0.001]
[1739331676342,0.156575,95801.0,95799.0,0.03262223]
[1739331676567,0.208759,95804.0,95799.0,0.03262223]
[1739331676784,0.156576,95800.0,95797.0,0.03361815]
[1739331677010,0.156576,95800.0,95798.0,0.03261815]
[1739331677227,0.156577,95799.0,95797.0,0.03261815]
[1739331677494,0.208759,95804.0,95796.0,0.0001065]
[1739331677719,0.156575,95801.0,95797.0,0.0326176]
[1739331678136,0.157576,95800.0,95797.0,0.0326176]
[1739331678379,0.156578,95799.0,95797.0,0.0326176]
[1739331678599,0.157576,95800.0,95797.0,0.0326176]
[1739331678800,0.156576,95800.0,95797.0,0.0326176]
[1739331679515,0.156576,95800.0,95797.0,0.0336176]
[1739331679747,0.001,95800.0,95797.0,0.0336176]
[1739331679984,0.001,95800.0,95797.0,0.001]
[1739331680222,0.157576,95800.0,95797.0,0.001]
[1739331680452,0.001,95800.0,95798.0,0.09395744]
[1739331681623,0.208766,95801.0,95798.0,0.09395744]
[1739331681814,0.001,95800.0,95798.0,0.09395744]
[1739331682136,0.001,95800.0,95798.0,0.09495744]
[1739331682137,0.156577,95799.0,95798.0,0.09495744]
[1739331682350,0.157576,95800.0,95798.0,0.09495744]
[1739331682561,0.156576,95800.0,95798.0,0.09495744]
[1739331682812,0.1241,95805.0,95798.0,0.09495744]
[1739331683023,0.002,95801.0,95798.0,0.09495744]
[1739331683235,0.158574,95801.0,95799.0,0.09395744]
[1739331683480,0.002,95801.0,95799.0,0.09395744]
[1739331684285,0.156574,95802.0,95799.0,0.09395744]
[1739331684480,0.001,95800.0,95799.0,0.09395744]
[1739331684723,0.001,95800.0,95799.0,0.12654826]
[1739331684841,0.156575,95801.0,95799.0,0.12654826]
[1739331685036,0.156575,95801.0,95799.0,0.09395744]
[1739331685305,0.158576,95801.0,95799.0,0.09395744]
[1739331685757,0.002,95801.0,95800.0,0.03259286]
[1739331685977,0.002,95801.0,95799.0,0.09395744]
[1739331686412,0.002,95801.0,95800.0,0.09395744]
[1739331686638,0.158574,95801.0,95800.0,0.09395744]
[1739331687291,0.156574,95801.0,95800.0,0.09395744]
[1739331687499,0.156574,95801.0,95800.0,0.12655402]
[1739331687734,0.158574,95801.0,95800.0,0.09395744]
[1739331687959,0.002,95801.0,95800.0,0.09395744]
[1739331688167,0.158574,95801.0,95800.0,0.09395744]
[1739331688610,0.156574,95801.0,95800.0,0.12655822]
[1739331689152,0.158574,95801.0,95800.0,0.12655822]
[1739331690227,0.002,95801.0,95800.0,0.12656537]
[1739331690436,0.365333,95803.0,95800.0,0.12656537]
[1739331690676,0.156572,95802.0,95801.0,0.03260793]
[1739331690901,0.156572,95802.0,95798.0,0.00022365]
[1739331691134,0.156572,95803.0,95799.0,0.0326046]
[1739331691366,0.156575,95801.0,95799.0,0.0326046]
[1739331691553,0.15349955,95801.0,95799.0,0.0326046]
[1739331691972,0.159572,95803.0,95799.0,0.0326046]
[1739331692144,0.00130483,95802.0,95799.0,0.0326046]
[1739331692345,0.156574,95801.0,95799.0,0.0326046]
[1739331692577,0.15326175,95801.0,95799.0,0.0326046]
[1739331693027,0.00078474,95800.0,95798.0,0.00022365]
[1739331693250,0.2280704,95799.0,95798.0,0.00022365]
[1739331693576,0.33057405,95799.0,95798.0,0.00022365]